[Event "Titled Tuesday Blitz May 10 Early 2022"]
[White "Nenezic, Marko"]
[Black "Demchenko, Anton"]
[WhiteFideId "912123"]
[BlackFideId "4160258"]
[WhiteElo "2457"]
[BlackElo "2539"]
[Result "1-0"]
[Round "05"]
[TimeControl "180+1"]
[Date "2022.05.10"]
[WhiteClock "0:00:05"]
[BlackClock "0:00:05"]

1. d4 {[%clk 0:02:54]}  Nf6 {[%clk 0:02:59]} 2. c4 {[%clk 0:02:54]}  d6 {[%clk 0:02:59]} 3. Nf3 {[%clk 0:02:54]}  Nc6 {[%clk 0:02:58]} 4. Nc3 {[%clk 0:02:50]}  e5 {[%clk 0:02:58]} 5. d5 {[%clk 0:02:49]}  Ne7 {[%clk 0:02:58]} 6. e4 {[%clk 0:02:49]}  Ng6 {[%clk 0:02:59]} 7. g3 {[%clk 0:02:42]}  Be7 {[%clk 0:02:59]} 8. h4 {[%clk 0:02:42]}  h6 {[%clk 0:02:58]} 9. h5 {[%clk 0:02:37]}  Nf8 {[%clk 0:02:58]} 10. Bh3 {[%clk 0:02:37]}  Bxh3 {[%clk 0:02:50]} 11. Rxh3 {[%clk 0:02:37]}  Qc8 {[%clk 0:02:48]} 12. Rh1 {[%clk 0:02:37]}  N8h7 {[%clk 0:02:30]} 13. Nh4 {[%clk 0:02:29]}  O-O {[%clk 0:02:28]} 14. Nf5 {[%clk 0:02:27]}  Re8 {[%clk 0:02:25]} 15. Qe2 {[%clk 0:02:03]}  c6 {[%clk 0:02:18]} 16. a4 {[%clk 0:01:48]}  cxd5 {[%clk 0:02:09]} 17. cxd5 {[%clk 0:01:48]}  a6 {[%clk 0:02:10]} 18. a5 {[%clk 0:01:42]}  Qc7 {[%clk 0:01:58]} 19. Be3 {[%clk 0:01:38]}  Rac8 {[%clk 0:01:59]} 20. Ra4 {[%clk 0:01:30]}  Qd7 {[%clk 0:01:54]} 21. Ra3 {[%clk 0:01:19]}  Bd8 {[%clk 0:01:52]} 22. f3 {[%clk 0:01:14]}  Kh8 {[%clk 0:01:44]} 23. Kf2 {[%clk 0:01:14]}  Ng8 {[%clk 0:01:43]} 24. Qd2 {[%clk 0:00:55]}  Bg5 {[%clk 0:01:42]} 25. Na4 {[%clk 0:00:55]}  Bd8 {[%clk 0:01:17]} 26. Nb6 {[%clk 0:00:50]}  Bxb6 {[%clk 0:01:17]} 27. axb6 {[%clk 0:00:50]}  Ne7 {[%clk 0:01:13]} 28. g4 {[%clk 0:00:46]}  Nxf5 {[%clk 0:01:13]} 29. gxf5 {[%clk 0:00:47]}  f6 {[%clk 0:01:14]} 30. Rc1 {[%clk 0:00:45]}  Qf7 {[%clk 0:01:05]} 31. Rh1 {[%clk 0:00:32]}  Ng5 {[%clk 0:01:02]} 32. Kg3 {[%clk 0:00:29]}  Qd7 {[%clk 0:01:00]} 33. Rc1 {[%clk 0:00:23]}  Rxc1 {[%clk 0:00:45]} 34. Qxc1 {[%clk 0:00:23]}  Qb5 {[%clk 0:00:45]} 35. Rc3 {[%clk 0:00:20]}  Kh7 {[%clk 0:00:25]} 36. Rc7 {[%clk 0:00:19]}  Qe2 {[%clk 0:00:06]} 37. Bxg5 {[%clk 0:00:18]}  hxg5 {[%clk 0:00:06]} 38. h6 {[%clk 0:00:18]}  g4 {[%clk 0:00:04]} 39. Qh1 {[%clk 0:00:12]}  Qxf3+ {[%clk 0:00:02]} 40. Qxf3 {[%clk 0:00:12]}  gxf3 {[%clk 0:00:03]} 41. Rxg7+ {[%clk 0:00:06]}  Kxh6 {[%clk 0:00:03]} 42. Rxb7 {[%clk 0:00:07]}  Rg8+ {[%clk 0:00:02]} 43. Kxf3 {[%clk 0:00:08]}  Rg1 {[%clk 0:00:02]} 44. Rf7 {[%clk 0:00:06]}  Rb1 {[%clk 0:00:02]} 45. Rxf6+ {[%clk 0:00:06]}  Kh5 {[%clk 0:00:02]} 46. Rxd6 {[%clk 0:00:07]}  Rxb2 {[%clk 0:00:03]} 47. Rc6 {[%clk 0:00:04]}  a5 {[%clk 0:00:03]} 48. d6 {[%clk 0:00:05]}  a4 {[%clk 0:00:03]} 49. d7 {[%clk 0:00:05]}  Rd2 {[%clk 0:00:03]} 50. b7 {[%clk 0:00:05]}  Rd3+ {[%clk 0:00:04]} 51. Ke2 {[%clk 0:00:05]}  Rxd7 {[%clk 0:00:05]} 52. b8=Q {[%clk 0:00:05]}  a3 {[%clk 0:00:05]} 53. Rg6 {[%clk 0:00:05]} 1-0


[Site "https://www.chess.com"]

[Event "Titled Tuesday Blitz May 10 Early 2022"]
[White "Nogerbek, Kazybek"]
[Black "Aldokhin, Ivan"]
[WhiteFideId "13710427"]
[BlackFideId "24115720"]
[WhiteElo "2441"]
[BlackElo "2231"]
[Result "1-0"]
[Round "05"]
[TimeControl "180+1"]
[Date "2022.05.10"]
[WhiteClock "0:01:21"]
[BlackClock "0:00:03"]

1. e4 {[%clk 0:03:00]}  c5 {[%clk 0:02:59]} 2. Nf3 {[%clk 0:02:59]}  e6 {[%clk 0:02:59]} 3. d4 {[%clk 0:02:57]}  cxd4 {[%clk 0:03:00]} 4. Nxd4 {[%clk 0:02:58]}  a6 {[%clk 0:03:00]} 5. Bd3 {[%clk 0:02:57]}  Qc7 {[%clk 0:02:58]} 6. O-O {[%clk 0:02:57]}  Nf6 {[%clk 0:02:59]} 7. Qe2 {[%clk 0:02:57]}  d6 {[%clk 0:02:59]} 8. c4 {[%clk 0:02:57]}  Nbd7 {[%clk 0:02:59]} 9. Nc3 {[%clk 0:02:55]}  g6 {[%clk 0:02:52]} 10. Nf3 {[%clk 0:02:54]}  Bg7 {[%clk 0:02:51]} 11. Bf4 {[%clk 0:02:55]}  O-O {[%clk 0:02:47]} 12. h3 {[%clk 0:02:55]}  b6 {[%clk 0:02:42]} 13. Rfd1 {[%clk 0:02:52]}  Bb7 {[%clk 0:02:41]} 14. Rac1 {[%clk 0:02:52]}  Rac8 {[%clk 0:02:37]} 15. b3 {[%clk 0:02:52]}  Nh5 {[%clk 0:02:28]} 16. Bh2 {[%clk 0:02:51]}  Ne5 {[%clk 0:02:24]} 17. Qe3 {[%clk 0:02:49]}  Nf6 {[%clk 0:02:03]} 18. Nxe5 {[%clk 0:02:36]}  dxe5 {[%clk 0:02:03]} 19. Na4 {[%clk 0:02:35]}  Nd7 {[%clk 0:02:02]} 20. Bf1 {[%clk 0:02:26]}  Nc5 {[%clk 0:01:26]} 21. Nc3 {[%clk 0:02:09]}  f5 {[%clk 0:01:20]} 22. exf5 {[%clk 0:02:00]}  gxf5 {[%clk 0:01:19]} 23. b4 {[%clk 0:01:59]}  Ne4 {[%clk 0:01:07]} 24. Nxe4 {[%clk 0:01:55]}  Bxe4 {[%clk 0:01:08]} 25. c5 {[%clk 0:01:56]}  bxc5 {[%clk 0:00:38]} 26. Rxc5 {[%clk 0:01:54]}  Qb8 {[%clk 0:00:23]} 27. Bc4 {[%clk 0:01:54]}  Kh8 {[%clk 0:00:17]} 28. Bxe6 {[%clk 0:01:53]}  Rcd8 {[%clk 0:00:14]} 29. Re1 {[%clk 0:01:48]}  Qxb4 {[%clk 0:00:12]} 30. Bxe5 {[%clk 0:01:38]}  Rd3 {[%clk 0:00:11]} 31. Bxg7+ {[%clk 0:01:38]}  Kxg7 {[%clk 0:00:11]} 32. Qg5+ {[%clk 0:01:38]}  Kh8 {[%clk 0:00:12]} 33. Rec1 {[%clk 0:01:29]}  Rd1+ {[%clk 0:00:04]} 34. Rxd1 {[%clk 0:01:26]}  Qxc5 {[%clk 0:00:04]} 35. Rd7 {[%clk 0:01:27]}  Qe5 {[%clk 0:00:04]} 36. Qh6 {[%clk 0:01:21]}  Qa1+ {[%clk 0:00:03]} 37. Kh2 {[%clk 0:01:22]}  f4 {[%clk 0:00:03]} 38. Qxf8# {[%clk 0:01:21]} 1-0


[Site "https://www.chess.com"]

[Event "Titled Tuesday Blitz May 10 Early 2022"]
[White "Odegov, Artem"]
[Black "Thomas, Anysia"]
[WhiteFideId "34183644"]
[BlackFideId "670472"]
[WhiteElo "2286"]
[BlackElo "2002"]
[Result "1-0"]
[Round "05"]
[TimeControl "180+1"]
[Date "2022.05.11"]
[WhiteClock "0:00:13"]
[BlackClock "0:00:09"]

1. d4 {[%clk 0:01:44]}  Nf6 {[%clk 0:02:56]} 2. c4 {[%clk 0:01:44]}  g6 {[%clk 0:02:56]} 3. Nc3 {[%clk 0:01:43]}  d5 {[%clk 0:02:56]} 4. cxd5 {[%clk 0:01:44]}  Nxd5 {[%clk 0:02:57]} 5. e4 {[%clk 0:01:45]}  Nxc3 {[%clk 0:02:58]} 6. bxc3 {[%clk 0:01:46]}  Bg7 {[%clk 0:02:58]} 7. Bc4 {[%clk 0:01:46]}  c5 {[%clk 0:02:58]} 8. Ne2 {[%clk 0:01:47]}  O-O {[%clk 0:02:58]} 9. O-O {[%clk 0:01:47]}  Nc6 {[%clk 0:02:59]} 10. Be3 {[%clk 0:01:46]}  Bg4 {[%clk 0:02:58]} 11. f3 {[%clk 0:01:47]}  Bd7 {[%clk 0:02:59]} 12. Rb1 {[%clk 0:01:44]}  Qc7 {[%clk 0:02:59]} 13. Bf4 {[%clk 0:01:44]}  e5 {[%clk 0:02:50]} 14. Bg3 {[%clk 0:01:43]}  cxd4 {[%clk 0:02:50]} 15. cxd4 {[%clk 0:01:41]}  Nxd4 {[%clk 0:02:47]} 16. Qxd4 {[%clk 0:01:40]}  Rac8 {[%clk 0:01:49]} 17. Rfc1 {[%clk 0:01:26]}  exd4 {[%clk 0:01:48]} 18. Bxc7 {[%clk 0:01:27]}  Rxc7 {[%clk 0:01:48]} 19. Bxf7+ {[%clk 0:01:27]}  Rxf7 {[%clk 0:01:36]} 20. Rxc7 {[%clk 0:01:28]}  d3 {[%clk 0:01:35]} 21. Nc1 {[%clk 0:01:21]}  Bd4+ {[%clk 0:01:34]} 22. Kh1 {[%clk 0:01:21]}  Bb6 {[%clk 0:00:46]} 23. Rxb7 {[%clk 0:01:15]}  Bb5 {[%clk 0:00:30]} 24. Rxf7 {[%clk 0:00:51]}  Kxf7 {[%clk 0:00:29]} 25. Nb3 {[%clk 0:00:49]}  Bc4 {[%clk 0:00:21]} 26. Rd1 {[%clk 0:00:46]}  Be3 {[%clk 0:00:18]} 27. h4 {[%clk 0:00:40]}  Ke6 {[%clk 0:00:18]} 28. Kh2 {[%clk 0:00:38]}  Ke5 {[%clk 0:00:18]} 29. Kg3 {[%clk 0:00:37]}  Bxb3 {[%clk 0:00:16]} 30. axb3 {[%clk 0:00:20]}  d2 {[%clk 0:00:14]} 31. f4+ {[%clk 0:00:12]}  Bxf4+ {[%clk 0:00:14]} 32. Kf3 {[%clk 0:00:13]}  h6 {[%clk 0:00:13]} 33. g3 {[%clk 0:00:14]}  Kd4 {[%clk 0:00:09]} 34. gxf4 {[%clk 0:00:13]}  Kd3 {[%clk 0:00:09]} 35. e5 {[%clk 0:00:13]} 1-0


[Site "https://www.chess.com"]

[Event "Titled Tuesday Blitz May 10 Early 2022"]
[White "Oganian, Miran"]
[Black "Steinberg, Nitzan"]
[WhiteFideId "4122488"]
[BlackFideId "2801795"]
[WhiteElo "2357"]
[BlackElo "2471"]
[Result "1-0"]
[Round "05"]
[TimeControl "180+1"]
[Date "2022.05.10"]
[WhiteClock "0:00:22"]
[BlackClock "0:00:02"]

1. e4 {[%clk 0:02:59]}  c5 {[%clk 0:03:00]} 2. Nf3 {[%clk 0:02:59]}  d6 {[%clk 0:03:00]} 3. Bb5+ {[%clk 0:02:59]}  Bd7 {[%clk 0:02:58]} 4. Bxd7+ {[%clk 0:02:59]}  Nxd7 {[%clk 0:02:59]} 5. O-O {[%clk 0:02:57]}  Ngf6 {[%clk 0:03:00]} 6. Re1 {[%clk 0:02:56]}  g6 {[%clk 0:03:00]} 7. b3 {[%clk 0:02:56]}  Bg7 {[%clk 0:02:59]} 8. Bb2 {[%clk 0:02:56]}  O-O {[%clk 0:02:59]} 9. c4 {[%clk 0:02:57]}  a6 {[%clk 0:02:58]} 10. d4 {[%clk 0:02:57]}  cxd4 {[%clk 0:02:55]} 11. Nxd4 {[%clk 0:02:57]}  Rc8 {[%clk 0:02:52]} 12. Nc3 {[%clk 0:02:56]}  Ne5 {[%clk 0:02:48]} 13. h3 {[%clk 0:02:54]}  Nc6 {[%clk 0:02:42]} 14. Nd5 {[%clk 0:02:47]}  Nxd4 {[%clk 0:02:20]} 15. Bxd4 {[%clk 0:02:40]}  Nd7 {[%clk 0:02:08]} 16. Bxg7 {[%clk 0:02:36]}  Kxg7 {[%clk 0:02:09]} 17. Qd4+ {[%clk 0:02:36]}  Kg8 {[%clk 0:02:09]} 18. a4 {[%clk 0:02:22]}  Re8 {[%clk 0:02:03]} 19. a5 {[%clk 0:02:16]}  e6 {[%clk 0:01:51]} 20. Ne3 {[%clk 0:02:11]}  Qe7 {[%clk 0:01:39]} 21. Rad1 {[%clk 0:02:10]}  Rc6 {[%clk 0:01:26]} 22. b4 {[%clk 0:02:08]}  Nf6 {[%clk 0:01:14]} 23. e5 {[%clk 0:01:41]}  dxe5 {[%clk 0:01:12]} 24. Qxe5 {[%clk 0:01:42]}  Rc7 {[%clk 0:00:58]} 25. c5 {[%clk 0:01:37]}  Rd7 {[%clk 0:00:53]} 26. Rxd7 {[%clk 0:01:31]}  Nxd7 {[%clk 0:00:54]} 27. Qd4 {[%clk 0:01:22]}  h5 {[%clk 0:00:32]} 28. Rd1 {[%clk 0:01:21]}  Nb8 {[%clk 0:00:30]} 29. Qe4 {[%clk 0:01:13]}  Nc6 {[%clk 0:00:30]} 30. Nc4 {[%clk 0:01:02]}  Rd8 {[%clk 0:00:15]} 31. Nd6 {[%clk 0:01:01]}  Rd7 {[%clk 0:00:12]} 32. Rd3 {[%clk 0:00:59]}  e5 {[%clk 0:00:06]} 33. b5 {[%clk 0:00:36]}  axb5 {[%clk 0:00:06]} 34. a6 {[%clk 0:00:36]}  Nd4 {[%clk 0:00:03]} 35. axb7 {[%clk 0:00:35]}  Qd8 {[%clk 0:00:02]} 36. Qxe5 {[%clk 0:00:26]}  Ne6 {[%clk 0:00:02]} 37. c6 {[%clk 0:00:23]}  Rc7 {[%clk 0:00:02]} 38. Nf5 {[%clk 0:00:21]}  Qxd3 {[%clk 0:00:02]} 39. b8=Q+ {[%clk 0:00:22]} 1-0


[Site "https://www.chess.com"]

[Event "Titled Tuesday Blitz May 10 Early 2022"]
[White "Omelja, Artem"]
[Black "Silvestre, Christian"]
[WhiteFideId "14119846"]
[BlackFideId "30956269"]
[WhiteElo "2382"]
[BlackElo "2369"]
[Result "1-0"]
[Round "05"]
[TimeControl "180+1"]
[Date "2022.05.11"]
[WhiteClock "0:00:06"]
[BlackClock "0:00:05"]

1. d4 {[%clk 0:02:56]}  e5 {[%clk 0:02:46]} 2. dxe5 {[%clk 0:02:55]}  Nc6 {[%clk 0:02:45]} 3. Nf3 {[%clk 0:02:49]}  Qe7 {[%clk 0:02:45]} 4. e3 {[%clk 0:02:38]}  Nxe5 {[%clk 0:02:44]} 5. Nxe5 {[%clk 0:02:39]}  Qxe5 {[%clk 0:02:44]} 6. Be2 {[%clk 0:02:40]}  d5 {[%clk 0:02:41]} 7. O-O {[%clk 0:02:32]}  Nf6 {[%clk 0:02:28]} 8. Nd2 {[%clk 0:02:31]}  Bd6 {[%clk 0:02:26]} 9. Nf3 {[%clk 0:02:31]}  Qe7 {[%clk 0:02:25]} 10. b3 {[%clk 0:02:27]}  Bf5 {[%clk 0:02:23]} 11. Bb2 {[%clk 0:02:24]}  c6 {[%clk 0:02:18]} 12. c4 {[%clk 0:02:11]}  Rd8 {[%clk 0:02:10]} 13. cxd5 {[%clk 0:02:01]}  O-O {[%clk 0:02:06]} 14. Nd4 {[%clk 0:01:54]}  Qe5 {[%clk 0:01:56]} 15. g3 {[%clk 0:01:35]}  Qxd5 {[%clk 0:01:36]} 16. Bc4 {[%clk 0:01:13]}  Qa5 {[%clk 0:01:27]} 17. Nxf5 {[%clk 0:00:54]}  Qxf5 {[%clk 0:01:27]} 18. Qe2 {[%clk 0:00:55]}  Ng4 {[%clk 0:01:12]} 19. Rfd1 {[%clk 0:00:21]}  Ne5 {[%clk 0:00:59]} 20. Rac1 {[%clk 0:00:10]}  Nf3+ {[%clk 0:00:44]} 21. Kg2 {[%clk 0:00:10]}  Ng5 {[%clk 0:00:44]} 22. Bd3 {[%clk 0:00:02]}  Qh3+ {[%clk 0:00:43]} 23. Kg1 {[%clk 0:00:03]}  Rfe8 {[%clk 0:00:42]} 24. Bb1 {[%clk 0:00:02]}  Ne4 {[%clk 0:00:19]} 25. Rd4 {[%clk 0:00:01]}  Nf6 {[%clk 0:00:16]} 26. Rh4 {[%clk 0:00:01]}  Qe6 {[%clk 0:00:14]} 27. Bxf6 {[%clk 0:00:02]}  Qxf6 {[%clk 0:00:14]} 28. Bxh7+ {[%clk 0:00:02]}  Kf8 {[%clk 0:00:14]} 29. Bb1 {[%clk 0:00:03]}  Ba3 {[%clk 0:00:12]} 30. Rd1 {[%clk 0:00:03]}  Rxd1+ {[%clk 0:00:10]} 31. Qxd1 {[%clk 0:00:04]}  Rd8 {[%clk 0:00:10]} 32. Rh8+ {[%clk 0:00:03]}  Ke7 {[%clk 0:00:08]} 33. Qxd8+ {[%clk 0:00:04]}  Ke6 {[%clk 0:00:08]} 34. Re8+ {[%clk 0:00:05]}  Be7 {[%clk 0:00:05]} 35. Qd3 {[%clk 0:00:05]}  Qb2 {[%clk 0:00:03]} 36. Qf5+ {[%clk 0:00:04]}  Kd6 {[%clk 0:00:04]} 37. Qd3+ {[%clk 0:00:05]}  Kc7 {[%clk 0:00:04]} 38. Rxe7+ {[%clk 0:00:05]}  Kb6 {[%clk 0:00:04]} 39. Qd4+ {[%clk 0:00:05]}  Qxd4 {[%clk 0:00:02]} 40. exd4 {[%clk 0:00:06]}  Kb5 {[%clk 0:00:03]} 41. Rxf7 {[%clk 0:00:06]}  Kb4 {[%clk 0:00:04]} 42. Rxg7 {[%clk 0:00:07]}  Kc3 {[%clk 0:00:05]} 43. Be4 {[%clk 0:00:06]}  Kb2 {[%clk 0:00:05]} 44. Bxc6 {[%clk 0:00:06]} 1-0


[Site "https://www.chess.com"]

[Event "Titled Tuesday Blitz May 10 Early 2022"]
[White "Ovezdurdyyeva, Jemal"]
[Black "Zlatin, Alexander"]
[WhiteFideId "14001888"]
[BlackFideId "2810549"]
[WhiteElo "1946"]
[BlackElo "2228"]
[Result "0-1"]
[Round "05"]
[TimeControl "180+1"]
[Date "2022.05.11"]
[WhiteClock "0:00:12"]
[BlackClock "0:00:36"]

1. e4 {[%clk 0:02:56]}  e5 {[%clk 0:03:00]} 2. Nf3 {[%clk 0:02:56]}  Nc6 {[%clk 0:03:00]} 3. Bc4 {[%clk 0:02:56]}  Bc5 {[%clk 0:03:01]} 4. Kf1 {[%clk 0:02:55]}  Nf6 {[%clk 0:03:00]} 5. c3 {[%clk 0:02:53]}  d6 {[%clk 0:02:57]} 6. d4 {[%clk 0:02:50]}  exd4 {[%clk 0:02:56]} 7. cxd4 {[%clk 0:02:51]}  Bb6 {[%clk 0:02:56]} 8. Nc3 {[%clk 0:02:45]}  Bg4 {[%clk 0:02:53]} 9. Be3 {[%clk 0:02:44]}  O-O {[%clk 0:02:50]} 10. h3 {[%clk 0:02:37]}  Bd7 {[%clk 0:02:44]} 11. e5 {[%clk 0:02:29]}  dxe5 {[%clk 0:02:25]} 12. dxe5 {[%clk 0:02:29]}  Nh5 {[%clk 0:02:24]} 13. Bg5 {[%clk 0:02:29]}  Qe8 {[%clk 0:02:13]} 14. g4 {[%clk 0:02:16]}  Nxe5 {[%clk 0:02:04]} 15. Nxe5 {[%clk 0:02:16]}  Qxe5 {[%clk 0:02:04]} 16. Qxd7 {[%clk 0:02:17]}  Qxg5 {[%clk 0:01:55]} 17. gxh5 {[%clk 0:02:16]}  Qf4 {[%clk 0:01:47]} 18. Nd1 {[%clk 0:01:05]}  Qxc4+ {[%clk 0:01:46]} 19. Kg1 {[%clk 0:01:02]}  Rad8 {[%clk 0:01:40]} 20. Qg4 {[%clk 0:01:02]}  Rd4 {[%clk 0:01:18]} 21. Qg3 {[%clk 0:00:56]}  Rd3 {[%clk 0:01:06]} 22. Qg5 {[%clk 0:00:54]}  h6 {[%clk 0:01:00]} 23. Qg4 {[%clk 0:00:51]}  Qc2 {[%clk 0:00:49]} 24. Kh2 {[%clk 0:00:47]}  Bxf2 {[%clk 0:00:34]} 25. Nxf2 {[%clk 0:00:14]}  Qxf2+ {[%clk 0:00:33]} 26. Qg2 {[%clk 0:00:15]}  Qf4+ {[%clk 0:00:33]} 27. Kg1 {[%clk 0:00:14]}  Rg3 {[%clk 0:00:34]} 28. Qxg3 {[%clk 0:00:13]}  Qxg3+ {[%clk 0:00:35]} 29. Kf1 {[%clk 0:00:13]}  Qf3+ {[%clk 0:00:35]} 30. Kg1 {[%clk 0:00:13]}  Re8 {[%clk 0:00:36]} 31. Rf1 {[%clk 0:00:12]}  Qg3# {[%clk 0:00:36]} 0-1


[Site "https://www.chess.com"]

[Event "Titled Tuesday Blitz May 10 Early 2022"]
[White "Padmini, Rout"]
[Black "Shimelkov, Vasiliy"]
[WhiteFideId "5029295"]
[BlackFideId "13701630"]
[WhiteElo "2181"]
[BlackElo "2073"]
[Result "0-1"]
[Round "05"]
[TimeControl "180+1"]
[Date "2022.05.11"]
[WhiteClock "0:00:54"]
[BlackClock "0:00:43"]

1. e4 {[%clk 0:03:00]}  c6 {[%clk 0:03:00]} 2. d4 {[%clk 0:02:59]}  d5 {[%clk 0:03:00]} 3. e5 {[%clk 0:02:57]}  Bf5 {[%clk 0:03:00]} 4. Nd2 {[%clk 0:02:57]}  e6 {[%clk 0:02:59]} 5. Nb3 {[%clk 0:02:57]}  Nd7 {[%clk 0:02:59]} 6. Nf3 {[%clk 0:02:57]}  a6 {[%clk 0:02:59]} 7. Be2 {[%clk 0:02:57]}  c5 {[%clk 0:02:58]} 8. c3 {[%clk 0:02:57]}  c4 {[%clk 0:02:53]} 9. Nbd2 {[%clk 0:02:55]}  Ne7 {[%clk 0:02:52]} 10. Nf1 {[%clk 0:02:52]}  Bg6 {[%clk 0:02:52]} 11. h4 {[%clk 0:02:48]}  h6 {[%clk 0:02:48]} 12. h5 {[%clk 0:02:47]}  Bh7 {[%clk 0:02:48]} 13. Bf4 {[%clk 0:02:36]}  Nf5 {[%clk 0:02:45]} 14. g4 {[%clk 0:02:34]}  Ne7 {[%clk 0:02:44]} 15. Ng3 {[%clk 0:02:34]}  Nc6 {[%clk 0:02:40]} 16. Qd2 {[%clk 0:02:27]}  b5 {[%clk 0:02:39]} 17. a3 {[%clk 0:02:24]}  a5 {[%clk 0:02:39]} 18. Bd1 {[%clk 0:02:19]}  Be7 {[%clk 0:02:37]} 19. g5 {[%clk 0:01:35]}  hxg5 {[%clk 0:02:31]} 20. Nxg5 {[%clk 0:01:35]}  Bxg5 {[%clk 0:02:20]} 21. Bxg5 {[%clk 0:01:36]}  Qb6 {[%clk 0:02:08]} 22. h6 {[%clk 0:01:34]}  g6 {[%clk 0:02:06]} 23. f4 {[%clk 0:01:28]}  Ra6 {[%clk 0:01:53]} 24. Nf1 {[%clk 0:01:26]}  O-O {[%clk 0:01:40]} 25. Ne3 {[%clk 0:01:25]}  b4 {[%clk 0:01:36]} 26. Ng4 {[%clk 0:01:24]}  Rb8 {[%clk 0:01:28]} 27. Bc2 {[%clk 0:01:22]}  bxc3 {[%clk 0:01:04]} 28. bxc3 {[%clk 0:01:23]}  Qb2 {[%clk 0:01:04]} 29. Ke2 {[%clk 0:01:13]}  Qb7 {[%clk 0:00:47]} 30. Rhb1 {[%clk 0:01:05]}  Rb6 {[%clk 0:00:47]} 31. Rxb6 {[%clk 0:01:04]}  Qxb6 {[%clk 0:00:47]} 32. a4 {[%clk 0:01:03]}  Qb2 {[%clk 0:00:45]} 33. Bd1 {[%clk 0:00:54]}  Qxa1 {[%clk 0:00:43]} 0-1


[Site "https://www.chess.com"]

[Event "Titled Tuesday Blitz May 10 Early 2022"]
[White "Paiva, Henrique M A Albergaria"]
[Black "Atakhan, Abtin"]
[WhiteFideId "1920995"]
[BlackFideId "22502203"]
[WhiteElo "1975"]
[BlackElo "2094"]
[Result "0-1"]
[Round "05"]
[TimeControl "180+1"]
[Date "2022.05.11"]
[WhiteClock "0:02:12"]
[BlackClock "0:01:18"]

1. e4 {[%clk 0:02:52]}  c5 {[%clk 0:02:59]} 2. Nf3 {[%clk 0:02:51]}  Nc6 {[%clk 0:03:00]} 3. Nc3 {[%clk 0:02:51]}  g6 {[%clk 0:02:59]} 4. d4 {[%clk 0:02:52]}  cxd4 {[%clk 0:02:59]} 5. Nxd4 {[%clk 0:02:53]}  Bg7 {[%clk 0:03:00]} 6. Nxc6 {[%clk 0:02:53]}  bxc6 {[%clk 0:02:59]} 7. Bc4 {[%clk 0:02:54]}  Qc7 {[%clk 0:02:58]} 8. Be3 {[%clk 0:02:54]}  Nf6 {[%clk 0:02:57]} 9. O-O {[%clk 0:02:54]}  d6 {[%clk 0:02:54]} 10. h3 {[%clk 0:02:55]}  Rb8 {[%clk 0:02:54]} 11. Bb3 {[%clk 0:02:55]}  O-O {[%clk 0:02:52]} 12. Qd2 {[%clk 0:02:55]}  a5 {[%clk 0:02:52]} 13. Bh6 {[%clk 0:02:53]}  Ba6 {[%clk 0:02:52]} 14. Rfe1 {[%clk 0:02:53]}  Nd7 {[%clk 0:02:51]} 15. Bxg7 {[%clk 0:02:51]}  Kxg7 {[%clk 0:02:52]} 16. Qd4+ {[%clk 0:02:51]}  Kg8 {[%clk 0:02:44]} 17. Rad1 {[%clk 0:02:50]}  Ne5 {[%clk 0:02:37]} 18. f4 {[%clk 0:02:46]}  Rb4 {[%clk 0:02:37]} 19. Qe3 {[%clk 0:02:43]}  Nc4 {[%clk 0:02:35]} 20. Qe2 {[%clk 0:02:38]}  Qb6+ {[%clk 0:02:28]} 21. Qf2 {[%clk 0:02:36]}  Qxf2+ {[%clk 0:02:22]} 22. Kxf2 {[%clk 0:02:37]}  Nxb2 {[%clk 0:02:23]} 23. Rb1 {[%clk 0:02:35]}  Nc4 {[%clk 0:02:18]} 24. e5 {[%clk 0:02:36]}  Na3 {[%clk 0:02:17]} 25. Rbd1 {[%clk 0:02:28]}  Rxf4+ {[%clk 0:02:14]} 26. Kg3 {[%clk 0:02:26]}  dxe5 {[%clk 0:01:58]} 27. Rxe5 {[%clk 0:02:24]}  Rb4 {[%clk 0:01:53]} 28. Rxe7 {[%clk 0:02:23]}  Bc4 {[%clk 0:01:54]} 29. Rc7 {[%clk 0:02:18]}  Bxb3 {[%clk 0:01:52]} 30. cxb3 {[%clk 0:02:18]}  Rb6 {[%clk 0:01:30]} 31. Na4 {[%clk 0:02:18]}  Nb5 {[%clk 0:01:24]} 32. Re7 {[%clk 0:02:14]}  Rbb8 {[%clk 0:01:22]} 33. Rc1 {[%clk 0:02:14]}  Nd4 {[%clk 0:01:19]} 34. Rd7 {[%clk 0:02:12]}  Ne2+ {[%clk 0:01:18]} 0-1


[Site "https://www.chess.com"]

[Event "Titled Tuesday Blitz May 10 Early 2022"]
[White "Perdomo, Carlos Andres"]
[Black "Navalgund, Niranjan"]
[WhiteFideId "4400852"]
[BlackFideId "5030854"]
[WhiteElo "2268"]
[BlackElo "2290"]
[Result "0-1"]
[Round "05"]
[TimeControl "180+1"]
[Date "2022.05.11"]
[WhiteClock "0:00:12"]
[BlackClock "0:00:48"]

1. c4 {[%clk 0:03:00]}  Nf6 {[%clk 0:02:22]} 2. Nc3 {[%clk 0:02:59]}  e5 {[%clk 0:02:20]} 3. Nf3 {[%clk 0:02:57]}  Nc6 {[%clk 0:02:19]} 4. e3 {[%clk 0:02:54]}  Bb4 {[%clk 0:02:17]} 5. Nd5 {[%clk 0:02:48]}  Nxd5 {[%clk 0:01:45]} 6. cxd5 {[%clk 0:02:48]}  Ne7 {[%clk 0:01:44]} 7. Nxe5 {[%clk 0:02:19]}  Nxd5 {[%clk 0:01:44]} 8. Qb3 {[%clk 0:02:07]}  c6 {[%clk 0:01:39]} 9. Bc4 {[%clk 0:01:53]}  Qe7 {[%clk 0:01:19]} 10. Bxd5 {[%clk 0:01:47]}  cxd5 {[%clk 0:01:18]} 11. Qxd5 {[%clk 0:01:45]}  O-O {[%clk 0:01:18]} 12. O-O {[%clk 0:01:41]}  Qd6 {[%clk 0:01:19]} 13. Qxd6 {[%clk 0:01:36]}  Bxd6 {[%clk 0:01:17]} 14. Nc4 {[%clk 0:01:36]}  Bc7 {[%clk 0:01:17]} 15. d4 {[%clk 0:01:32]}  b5 {[%clk 0:01:17]} 16. Nd2 {[%clk 0:01:27]}  Ba6 {[%clk 0:01:16]} 17. Nb3 {[%clk 0:01:26]}  b4 {[%clk 0:01:14]} 18. Re1 {[%clk 0:01:22]}  Bb6 {[%clk 0:01:14]} 19. Bd2 {[%clk 0:01:19]}  Rfc8 {[%clk 0:01:09]} 20. Rec1 {[%clk 0:01:18]}  Bc4 {[%clk 0:01:08]} 21. Nc5 {[%clk 0:01:15]}  d5 {[%clk 0:01:07]} 22. Bxb4 {[%clk 0:01:13]}  a5 {[%clk 0:01:07]} 23. Ba3 {[%clk 0:01:11]}  Bxc5 {[%clk 0:01:06]} 24. dxc5 {[%clk 0:01:07]}  a4 {[%clk 0:01:06]} 25. Rxc4 {[%clk 0:00:59]}  dxc4 {[%clk 0:01:05]} 26. Rc1 {[%clk 0:00:59]}  Rd8 {[%clk 0:01:04]} 27. Kf1 {[%clk 0:00:59]}  Rd2 {[%clk 0:00:57]} 28. Rxc4 {[%clk 0:00:51]}  f6 {[%clk 0:00:57]} 29. c6 {[%clk 0:00:51]}  Rc8 {[%clk 0:00:57]} 30. Ke1 {[%clk 0:00:46]}  Rd5 {[%clk 0:00:55]} 31. Bb4 {[%clk 0:00:41]}  Rb5 {[%clk 0:00:54]} 32. a3 {[%clk 0:00:36]}  Kf7 {[%clk 0:00:53]} 33. Kd2 {[%clk 0:00:35]}  Ke6 {[%clk 0:00:52]} 34. Kc2 {[%clk 0:00:34]}  Rb6 {[%clk 0:00:52]} 35. c7 {[%clk 0:00:32]}  Kd7 {[%clk 0:00:50]} 36. Ba5 {[%clk 0:00:31]}  Rc6 {[%clk 0:00:50]} 37. Rxc6 {[%clk 0:00:30]}  Kxc6 {[%clk 0:00:51]} 38. b4 {[%clk 0:00:17]}  axb3+ {[%clk 0:00:50]} 39. Kxb3 {[%clk 0:00:17]}  Kb5 {[%clk 0:00:50]} 40. Bc3 {[%clk 0:00:16]}  Rxc7 {[%clk 0:00:50]} 41. Kc2 {[%clk 0:00:17]}  Kc4 {[%clk 0:00:49]} 42. Bb4 {[%clk 0:00:15]}  Rd7 {[%clk 0:00:49]} 43. g3 {[%clk 0:00:14]}  Rd3 {[%clk 0:00:49]} 44. h4 {[%clk 0:00:13]}  f5 {[%clk 0:00:49]} 45. Bf8 {[%clk 0:00:12]}  g6 {[%clk 0:00:49]} 46. Bb4 {[%clk 0:00:12]}  Rb3 {[%clk 0:00:49]} 47. Kd2 {[%clk 0:00:12]}  Rb2+ {[%clk 0:00:49]} 48. Ke1 {[%clk 0:00:12]}  Kd3 {[%clk 0:00:49]} 49. Bc5 {[%clk 0:00:12]}  Rb1# {[%clk 0:00:48]} 0-1


[Site "https://www.chess.com"]